Cogmind - Beta 15 @@@ ROGUE MODE // 2025.05.12 @ 18:36:02 Player: TheRandomBlokkieZ Result: Destroyed by G-47 Trooper with Particle Gun Performance ------------- Evolutions (2) 1000 Regions Visited (3) 600 Robots Destroyed (30) 150 Value Destroyed (873) 873 Prototype IDs (0) 0 Alien Tech Used (0) 0 Bonus (0) 0 TOTAL SCORE: 2623 Bonus ------- None Cogmind --------- Core Integrity 0/550 Matter 117/300 Energy 100/100 System Corruption 0% Temperature Danger (422) Movement Core (50) Location -8/Materials Parts ------- > --- POWER (2) -------- (None) > --- PROPULSION (3) --- (None) > --- UTILITY (3) ------ (None) > --- WEAPON (3) ------- (None) > --- INVENTORY (5) ---- Improved Medium Laser Improved Light Cannon Improved Light Cannon Improved Light Cannon Peak State ------------ > --- POWER ------------ Ion Engine Light Ion Engine > --- PROPULSION ------- Light Treads Light Treads Armored Treads > --- UTILITY ---------- Small Storage Unit Power Shielding Light Armor Plating > --- WEAPON ----------- Improved Light Cannon Improved Light Cannon Improved Light Cannon > --- INVENTORY -------- Nuclear Core Improved Medium Laser Improved Light Cannon Improved Light Cannon Improved Light Cannon Improved Light Cannon Grenade Launcher [Rating: 17] Favorites ----------- Power Ion Engine Engine Ion Engine Propulsion Light Treads Treads Light Treads Utility Small Storage Unit Device Sensor Array Storage Small Storage Unit Protection Power Shielding Weapon Improved Light Cannon Energy Gun EM Pulse Gun Ballistic Gun Assault Rifle Ballistic Cannon Improved Light Cannon Launcher Grenade Launcher Build | -11 -10 -9 -8 ------- Run | Yrd Mat Mat Mat Slots Evolved 4 | . . 2 2 Power 1 | . . 1 . Propulsion 1 | . . . 1 Utility 1 | . . 1 . Weapon 1 | . . . 1 Parts Attached 22 | 6 1 8 7 Power 4 | 1 . 3 . Engine 4 | 1 . 3 . Core . | . . . . Reactor . | . . . . Propulsion 4 | 2 . 1 1 Treads 4 | 2 . 1 1 Leg . | . . . . Wheel . | . . . . Hover . | . . . . Flight . | . . . . Utility 4 | 1 1 2 . Device 1 | . . 1 . Storage 1 | 1 . . . Processor . | . . . . Hackware . | . . . . Protection 2 | . 1 1 . Artifact . | . . . . Weapon 10 | 2 . 2 6 Energy Gun 1 | 1 . . . Energy Cannon . | . . . . Ballistic Gun 1 | 1 . . . Ballistic Cannon 7 | . . 2 5 Launcher 1 | . . . 1 Special Weapon . | . . . . Impact Weapon . | . . . . Slashing Weapon . | . . . . Piercing Weapon . | . . . . Special Melee Weapon . | . . . . Unidentified Prototypes . | . . . . Parts Lost 15 | . . 3 12 Power 3 | . . 1 2 Propulsion 3 | . . . 3 Utility 4 | . . 1 3 Weapon 5 | . . 1 4 Highest Loss Streak 12 | . . 1 12 To Critical Strikes . | . . . . Average Backups 4 | 1 2 5 6 Power 1 | . 1 1 . Propulsion . | . . . . Utility . | . . . . Weapon 3 | . . 4 5 Tool/Special . | . . . . Unused Backups 2 | . . . 2 Power 1 | . . . 1 Propulsion . | . . . . Utility . | . . . . Weapon 1 | . . . 1 Tool/Special . | . . . . Average Slot Usage (%) 91 | . 94 93 80 Engine 17 | . 14 20 13 Treads 23 | . 28 22 22 Device 3 | . . 7 . Storage 11 | . 14 11 8 Protection 11 | . 8 13 11 Energy Gun 4 | . 14 1 . Ballistic Gun 6 | . 14 4 . Ballistic Cannon 11 | . . 13 24 Peak Build Rating 17 | 6 7 12 17 Average Rating 9 | 3 6 10 14 On Entrance 6 | . 6 7 12 Naked Turns 8 | . . . 8 Heaviest Build 29 | 14 15 25 29 Greatest Support 60 | 40 40 40 60 Greatest Overweight (x) 1 | 1 . . . Average Overweight (x) . | . . . . Largest Inventory Capacity 8 | 8 8 8 8 Average Capacity 7 | 7 8 8 7 Most Carried 8 | 6 4 8 8 Average Carried 4 | 1 2 5 6 Final Capacity 8 | 8 8 8 5 Final Carried 8 | 1 4 8 4 Class Distribution -------------------- 85% | Mutant 12% | Tank Dominant Class ---------------- Mutant | -10/Materials Mutant | -9/Materials Tank | -8/Materials Resources | -11 -10 -9 -8 ----------- Run | Yrd Mat Mat Mat Matter Collected 795 | 226 101 238 230 Remotely . | . . . . Salvage Created 923 | . 343 229 351 Parts 55 | . 23 18 14 Haulers Intercepted . | . . . . Recyclers Shooed . | . . . . Parts Field Recycled . | . . . . Retrieved Matter . | . . . . Parts Self-Destructed . | . . . . Prevented . | . . . . Kills | -11 -10 -9 -8 ------- Run | Yrd Mat Mat Mat Combat Hostiles Destroyed 23 | . 7 9 7 Guns 7 | . 5 2 . Cannons 12 | . . 7 5 AOE 4 | . 2 . 2 Classes Destroyed 6 | . 5 1 . Builder 2 | . 1 . 1 Recycler 3 | . 1 . 2 Watcher 2 | . 1 . 1 Swarmer 7 | . 3 4 . Grunt 13 | . 4 2 7 Sentry 3 | . . 3 . Best Kill Streak 5 | . 5 5 5 Combat Bots Only 5 | . 3 5 3 Max Kills in Single Turn 3 | . 3 1 3 Gunslinging . | . . . . Exploded 2 | . 2 . 1 Melee . | . . . . Uniques/NPCs Destroyed . | . . . . Combat | -11 -10 -9 -8 -------- Run | Yrd Mat Mat Mat Hostile Shots Fired 263 | . 32 77 154 Missed 66 | . 11 24 31 Hits 197 | . 21 53 123 Projectile 197 | . 21 53 123 Critical Strikes 8 | . 1 1 6 Damage Taken 2793 | . 211 620 1962 Core 587 | . 7 21 559 Absorbed by Shields . | . . . . Redirected to Shielding 51 | . 11 30 10 Core Remaining (%) 97 | 100 97 94 . Volleys Fired 91 | . 19 44 28 Largest 3 | . 2 2 3 Hottest 99 | . 60 66 99 Shots Fired 189 | . 38 74 77 Gun 64 | . 38 26 . Cannon 124 | . . 48 76 Launcher 1 | . . . 1 Special . | . . . . Kinetic 163 | . 19 68 76 Thermal . | . . . . Explosive 1 | . . . 1 Electromagnetic 25 | . 19 6 . Robot Hit Streak 8 | . 4 8 8 Robot Miss Streak 6 | . 2 4 6 Penetration Max . | . . . . Secondary Targets . | . . . . Shots Hit Robots 94 | . 19 39 36 Core Hits 47 | . 14 13 20 Critical Kills . | . . . . Critical Parts Destroyed . | . . . . Critical Strikes 1 | . . 1 . Blast 1 | . . 1 . Melee Attacks . | . . . . Impact . | . . . . Slashing . | . . . . Piercing . | . . . . Sneak Attacks . | . . . . Combat Hostiles . | . . . . Follow-up Attacks . | . . . . Damage Inflicted 2443 | . 370 724 1349 Guns 515 | . 271 244 . Cannons 1334 | . . 480 854 Explosions 594 | . 99 . 495 Melee . | . . . . Ramming . | . . . . Kinetic 1600 | . 74 672 854 Thermal 99 | . 99 . . Explosive 495 | . . . 495 Electromagnetic 249 | . 197 52 . Impact . | . . . . Slashing . | . . . . Piercing . | . . . . Highest Corruption . | . . . . Average Corruption . | . . . . Corruption Purged . | . . . . Corruption Blocked . | . . . . Overload Shots . | . . . . Overflow Damage 5 | . . . 5 Projectiles 5 | . . . 5 Explosions . | . . . . Melee . | . . . . Knockbacks 9 | . . 1 8 Impact . | . . . . Kinetic 9 | . . 1 8 Secondary . | . . . . Self-Inflicted Damage 18 | . . . 18 Shots 1 | . . . 1 Rammed . | . . . . Targets Rammed . | . . . . Kicked . | . . . . Crushed . | . . . . Highest Temperature 505 | . 66 170 505 Average Temperature 186 | . 42 73 305 Received Heat Transfer 1392 | . 81 213 1098 Effects 7 | . . . 7 Shutdowns 2 | . . . 2 Energy Bleed 1 | . . . 1 Interference 1 | . . . 1 Short Circuit 2 | . . . 2 Damage (major) 1 | . . . 1 Siege Activations . | . . . . Martial Activations . | . . . . Shielding Activations . | . . . . Robots Disrupted . | . . . . Combat Hostiles . | . . . . Robots Corrupted . | . . . . Combat Hostiles . | . . . . Parts Fried 1 | . 1 . . Impact Corruptions . | . . . . Robots Melted . | . . . . Combat Hostiles . | . . . . Parts Melted . | . . . . Heat Transferred 150 | . 150 . . Parts Sabotaged . | . . . . Parts Stolen . | . . . . Parts Stripped . | . . . . Power Chain Reactions 1 | . 1 . . Alert | -11 -10 -9 -8 ------- Run | Yrd Mat Mat Mat Maximum Alert Level . | . . . . Low Security (%) 100 | 100 100 100 100 Level 1 . | . . . . Level 2 . | . . . . Level 3 . | . . . . Level 4 . | . . . . Level 5 . | . . . . High Security . | . . . . Max Security . | . . . . Peak Influence 171 | . 113 107 171 Initial 42 | . . 42 31 Average 36 | . 16 35 86 Influence Increases 725 | . 190 247 288 Destroy 0b10 Robot/C 460 | . 140 180 140 Destroy 0b10 Robot/NC 35 | . 15 . 20 Destroy Leader 114 | . 32 50 32 Disable Machine 60 | . . 15 45 Destroy Structure 56 | . 3 2 51 Influence Decreases 616 | . 87 275 254 Entered New Map 105 | . . 61 44 Time Decay 341 | . 67 184 90 Lost Part 150 | . . 30 120 Purge Threat 20 | . 20 . . Squads Dispatched 5 | . 1 . 4 Investigation . | . . . . Extermination . | . . . . Reinforcement 4 | . 1 . 3 Assault . | . . . . Garrison 1 | . . . 1 Intercept . | . . . . Searches Triggered . | . . . . Construction Impeded . | . . . . Haulers Reinforced . | . . . . Active Scanning Responses . | . . . . Cargo Convoy Interrupts . | . . . . Stealth | -11 -10 -9 -8 --------- Run | Yrd Mat Mat Mat Distress Signals 7 | . . 2 5 Communications Jammed . | . . . . Distress Signals . | . . . . Times Spotted 39 | . 9 11 19 Peak Tracking Total 10 | . 3 4 10 Tactical Retreats . | . . . . Traps | -11 -10 -9 -8 ------- Run | Yrd Mat Mat Mat Traps Triggered . | . . . . Indirectly . | . . . . Trap Hack Attempts . | . . . . Triggered . | . . . . Disarmed . | . . . . Reprogrammed . | . . . . Reused . | . . . . Traps Extracted . | . . . . Installed . | . . . . Triggered . | . . . . Machines | -11 -10 -9 -8 ---------- Run | Yrd Mat Mat Mat Machines Disabled 4 | . . 1 3 Max in Single Turn 1 | . . 1 1 Machines Repaired . | . . . . Machines Dismantled . | . . . . Machines Sabotaged . | . . . . Overloaded Fab Kills . | . . . . Hacking | -11 -10 -9 -8 --------- Run | Yrd Mat Mat Mat Machines Accessed 5 | . 3 2 . Terminals 5 | . 3 2 . Fabricators . | . . . . Repair Stations . | . . . . Recycling Units . | . . . . Scanalyzers . | . . . . Garrison Access . | . . . . Total Hacks 13 | . 10 3 . Successful 1 | . 1 . . Failed 12 | . 9 3 . Catastrophic 8 | . 5 3 . Database Lockouts . | . . . . Manual 13 | . 10 3 . Terminals 13 | . 10 3 . Fabricators . | . . . . Repair Stations . | . . . . Recycling Units . | . . . . Scanalyzers . | . . . . Garrison Access . | . . . . Terminal Hacks 1 | . 1 . . Unreport Threat 1 | . 1 . . Fabricator Hacks . | . . . . Repair Station Hacks . | . . . . Recycling Unit Hacks . | . . . . Scanalyzer . | . . . . Garrison Access Hacks . | . . . . Unauthorized Hacks . | . . . . Terminals . | . . . . Fabricators . | . . . . Repair Stations . | . . . . Recycling Units . | . . . . Scanalyzers . | . . . . Garrison Access . | . . . . Data Cores Recovered . | . . . . Used . | . . . . Hacking Detections 5 | . 3 2 . Full Trace Events . | . . . . Feedback Events . | . . . . Feedback Blocked . | . . . . Robot Schematics Acquired . | . . . . Robots Built . | . . . . Authchips . | . . . . Time . | . . . . Total Robot Build Rating . | . . . . Part Schematics Acquired . | . . . . Parts Built . | . . . . Authchips . | . . . . Time . | . . . . Total Part Build Rating . | . . . . Parts Repaired . | . . . . Time . | . . . . Parts Recycled . | . . . . Recycled Matter . | . . . . Retrieved Matter . | . . . . Retrieved Components . | . . . . Parts Scanalyzed . | . . . . Part Schematics Acquired . | . . . . Parts Damaged . | . . . . Bothacking | -11 -10 -9 -8 ------------ Run | Yrd Mat Mat Mat Used RIF Installer . | . . . . Robots Hacked . | . . . . Non-combat . | . . . . Combat . | . . . . Robot Hacks Applied . | . . . . Relay Couplers Released . | . . . . Fabnet Peak Effective % . | . . . . Robots Rewired . | . . . . Allies Hacked . | . . . . Hacks Repelled . | . . . . Allies | -11 -10 -9 -8 -------- Run | Yrd Mat Mat Mat Total Allies . | . . . . Largest Group . | . . . . Highest-Rated Group . | . . . . Highest-Rated Ally . | . . . . Total Orders . | . . . . Ally Attacks . | . . . . Total Damage . | . . . . Kills . | . . . . Allies Corrupted . | . . . . Allies Melted . | . . . . Intel | -11 -10 -9 -8 ------- Run | Yrd Mat Mat Mat Active Infowar (turns) 423 | . . 423 . Sensors 423 | . . 423 . Robot Analysis Total . | . . . . Derelict Logs Recovered . | . . . . Drone Launches . | . . . . Drone Recoveries . | . . . . Exploration | -11 -10 -9 -8 ------------- Run | Yrd Mat Mat Mat Turns Passed 1219 | 65 340 615 199 Spaces Moved 575 | 51 174 293 57 Core 29 | 28 . . 1 Treads 546 | 23 174 293 56 Legs . | . . . . Wheels . | . . . . Hover . | . . . . Flight . | . . . . Fastest Speed 50 | 50 160 160 50 Average Speed 155 | 104 160 160 160 Slowest Speed 170 | 160 160 160 170 Overloaded Moves . | . . . . Propulsion Burnouts . | . . . . Robots Hopped . | . . . . Potential Cave-ins . | . . . . Cave-ins Triggered . | . . . . Exploration Rate (%) 23 | 4 47 28 16 Regions Visited 3 Branch Regions . Pre-discovered Areas . | . . . . Known Exits Taken . | . . . . Unknown Exits Taken 3 | 1 1 1 . Scrap Searched . | . . . . Spaces Dug . | . . . . Terrain Destroyed 60 | . 3 2 55 Melee . | . . . . Projectile 7 | . . 2 5 AOE 53 | . 3 . 50 Terrain Rammed . | . . . . Walls Destroyed . | . . . . Machines Disabled . | . . . . Actions | -11 -10 -9 -8 --------- Run | Yrd Mat Mat Mat Total 727 | 62 198 364 103 Wait 19 | . 1 9 9 Move 572 | 50 173 292 57 Hop . | . . . . Pick Up 19 | 6 4 8 1 Fast Attach 5 | 1 . 4 . Attach 11 | 5 1 2 3 Detach . | . . . . Swap 7 | . . 2 5 Drop 3 | . . 3 . Fire 91 | . 19 44 28 Melee . | . . . . Ram . | . . . . Kick . | . . . . Crush . | . . . . Escape Stasis . | . . . . Rewire . | . . . . Trap . | . . . . Miscellaneous . | . . . . Route ------- -11/Scrapyard -10/Materials (discovered 2 exits: *Mat x2) -9/Materials (discovered 2 exits: [*Mat] / [*Min]) -8/Materials History --------- Turn | Location | Event 5 | -11/Scrapyard | Discovered new exit (range 16) 66 | -11/Scrapyard | Entered Materials 177 | -10/Materials | Discovered new exit (range 15) 300 | -10/Materials | Build established: Mutant 333 | -10/Materials | Discovered new exit (range 16) 406 | -10/Materials | Entered another Materials area 406 | -9/Materials | Evolved 2 slots: Power x1, Utility x1 410 | -9/Materials | Discovered new exit (range 6) 878 | -9/Materials | Discovered new exit (range 16) 1021 | -9/Materials | Entered another Materials area 1021 | -8/Materials | Evolved 2 slots: Propulsion x1, Weapon x1 1173 | -8/Materials | Garrison activated, responded to threat 1214 | -8/Materials | Core integrity fell below 50% 1219 | -8/Materials | Core integrity fell below 20% 1220 | -8/Materials | Destroyed by G-47 Trooper with Particle Gun Last Messages --------------- Broken Imp. Light Cannon destroyed. K-01 Serf collects debris. Acquired 76 matter. Sml. Storage Unit destroyed. K-01 Serf collects debris. Imp. Light Cannon destroyed. K-01 Serf collects debris. Acquired 23 matter. Critical hit (Burn: +37). K-01 Serf collects debris. Arm. Treads destroyed. Overheating: Imp. Light Cannon damaged (-27). Imp. Light Cannon destroyed. M-28 Smith repairs G-47 Trooper. Acquired 4 matter. K-01 Serf collects debris. G-47 Trooper destroyed. Grenade Launcher destroyed. K-01 Serf collects debris. R-06 Scavenger collects Med. Matter Pod. Map ----- +----------------------------------------------------+ | ?????????????# """ # ???????????????????? | | ?????????????# + ???????????????????? | | ?????????????# # ????????????????????? | | ???????????### [# #???????????????????? | | ???????????+ ! # #???????????????????? | | ???????????### ! ? #???????????????????? | | ?????????????# =% ??? #???????????????????? | | ?????????????# *= ????? #???????????????????? | | ?????????????# % #?????? #???????????????????? | | ?????######### ######## #?? "???????????????? | | %% #? ????????????????? | | ????# ##/#########% #? ????????????????? | | ?????????????????# % # ?????????????????? | | ?????????????????# % #+#?????????????????? | | ?????????????????# g #?????????????????? | | ?????????????????# m* #?????????????????? | | ?????????????????# a #?????????????????? | | ?????????????????# ==! #?????????????????? | | ?????????????????# % =!! #????? #??????????? | | ?????????????????# =!! #??? #??????????? | | ?????????????????# k #? #??????????? | | ???????????# + %! # #??????????? | | ?????????????? # *] ; #??????????? | | ???????????? ?# r!*! % # #??????????? | | ???????????# ???### % *! ########??????????? | | ????????????#?????# g%=@ k #??????????? | | ???????????# ;**g[ [ +??????????? | | ???????????# " **g %= #??????????? | | ???????????? "G" **Y """ % #??????????? | | ?????????????" " %# % % #??????????? | | ?????????????? # g % #??????????? | | ???????????? ?+ #??????????? | | ???????????? ? ; #??????????? | | ???????????? ?? #;#### ##o#######???????????? | | ????????????? ??? # ???? #? ?????????????????? | | ???????????????? ?# ???? #?? ????????????????? | | ??????????????? ?#????? #?? ????????????????? | | ????????????????????????? #??? ???????????????? | | ????????????????????????? ?????????????????????? | | ?????????????????????????????????????????????????? | | ?????????????????????????????????????????????????? | | ?????????????????????????????????????????????????? | | ?????????????????????????????????????????????????? | | ?????????????????????????????????????????????????? | | ?????????????????????????????????????????????????? | | ?????????????????????????????????????????????????? | | ?????????????????????????????????????????????????? | | ?????????????????????????????????????????????????? | | ?????????????????????????????????????????????????? | | ?????????????????????????????????????????????????? | +----------------------------------------------------+ Best States ------------- Heat Dissipation 31 Energy Generation 15 Energy Capacity 275 Matter Stores 300 Matter Capacity 300 Sight Range 16 Robot Scan Range 14 Terrain Scan Density 10 Armor Coverage 150 Power Shielding 33 Evasion (%) 50 Recoil Reduction 3 Item Schematics ----------------- None Robot Schematics ------------------ None Fabricated ------------ Nothing Repaired ---------- Nothing Alien Tech Used ----------------- None Achievements -------------- None Challenges ------------ None Game ------ Seed IonicChromionBeacon Manual? 0 Play Time 00:16:08 Cumulative 3.9 hours Start 2025.05.12 @ 18:22:35 End 2025.05.12 @ 18:36:02 Sessions 1 Manual Loads 0 Difficulty Rogue Special Mode None Game No. 14 Rogue 14 Adventurer 0 Explorer 0 Win Type - Total 0 Types 0/0/0/0/0/0/0/0/0/0 Lore% 7 Gallery% 12 Achievement% 14 Wizard Run 0 Options --------- Layout 1 ASCII 0 Keyboard 0 Movement Mouse Keybinds 0 Fullscreen 1 Font 24/Smallcaps Map View 50x35 Zoom Use 0% Tactical HUD 0 Map Filters NONE Filters NONE Steam 1 RUN: b501482d-d36d-4f60-a3cc-3784cc75c280